Cogmind - Beta 13 @@@ ROGUE MODE // 2024.04.02 @ 17:31:49 Player: gabr Result: Destroyed by S-27 Virus with Autogun Performance ------------- Evolutions (5) 2500 Regions Visited (9) 1800 Robots Destroyed (45) 225 Value Destroyed (1264) 1264 Prototype IDs (26) 520 Alien Tech Used (0) 0 Bonus (749) 749 TOTAL SCORE: 7058 Bonus ------- Follower Combat Kills 108 Entered DSFs 500 Aligned with FarCom 300 Friendly Fire -159 Cogmind --------- Core Integrity 0/1000 Matter 130/300 Energy 22/100 System Corruption 14% Temperature Cool (0) Movement Core (200) Ox3 Location -5/DSF Parts ------- > --- POWER (2) -------- (None) > --- PROPULSION (5) --- (None) > --- UTILITY (6) ------ Improved Targeting Computer > --- WEAPON (4) ------- Heavy Phase Cannon > --- INVENTORY (5) ---- Improved Sensor Array Melee Analysis Suite System Restoration Module Peak State ------------ > --- POWER ------------ Light Angular Momentum Engine Light Fission Core > --- PROPULSION ------- Carbon-fiber Leg Carbon-fiber Leg Carbon-fiber Leg Carbon-fiber Leg Flexi-carbon Leg > --- UTILITY ---------- High-capacity Storage Unit Improved Targeting Computer Recoil Stabilizer Hardened Medium Armor Plating Hardened Heavy Armor Plating > --- WEAPON ----------- Disruptor Cannon Disruptor Cannon Disruptor Cannon Magnetic Acceleration Cannon > --- INVENTORY -------- Ion Engine Light Ion Engine Light Ion Engine Light Treads Advanced Treads Compact Wheel Cesium-ion Thruster Improved Sensor Array Melee Analysis Suite Hacking Suite System Restoration Module Improved Trap Extractor Advanced Beam Rifle Firepult Assault Cannon Mining Laser [Rating: 72] Favorites ----------- Power Ion Engine Engine Ion Engine Power Core Light Fission Core Propulsion Light Treads Treads Light Treads Leg Aluminum Leg Wheel Wheel Utility High-capacity Storage Unit Device Focal Shield Storage High-capacity Storage Unit Processor Improved Targeting Computer Protection Hardened Heavy Armor Plating Weapon Assault Cannon Energy Gun Small Laser Energy Cannon Firepult Ballistic Gun Gauss Rifle Ballistic Cannon Assault Cannon Launcher Grenade Launcher Special Weapon Mining Laser Build | -11 -10 -10 -10 -9 -8 -7 -6 -5 -5 ------- Run | Yrd Mat Min Exi Min Mat Fac Fac Fac DSF Slots Evolved 10 | . . . . . 4 2 2 2 . Power 1 | . . . . . 1 . . . . Propulsion 3 | . . . . . 3 . . . . Utility 4 | . . . . . . 1 1 2 . Weapon 2 | . . . . . . 1 1 . . Parts Attached 113 | 8 1 15 3 1 21 3 26 4 31 Power 17 | 1 . 3 . . 3 . 5 . 5 Engine 12 | 1 . 2 . . 3 . 2 . 4 Core 5 | . . 1 . . . . 3 . 1 Reactor . | . . . . . . . . . . Propulsion 35 | 2 . 3 . . 9 . 10 2 9 Treads 8 | . . . . . 6 . 2 . . Leg 21 | 2 . . . . 1 . 7 2 9 Wheel 6 | . . 3 . . 2 . 1 . . Hover . | . . . . . . . . . . Flight . | . . . . . . . . . . Utility 15 | 3 . 2 2 . 1 2 3 2 . Device 7 | 2 . 1 . . . 1 2 1 . Storage 3 | 1 . . 2 . . . . . . Processor 3 | . . 1 . . 1 1 . . . Hackware . | . . . . . . . . . . Protection 2 | . . . . . . . 1 1 . Artifact . | . . . . . . . . . . Weapon 46 | 2 1 7 1 1 8 1 8 . 17 Energy Gun 17 | 2 . 5 . . 1 . 2 . 7 Energy Cannon 7 | . . . 1 1 . . . . 5 Ballistic Gun 13 | . . . . . 5 1 3 . 4 Ballistic Cannon 5 | . . . . . 2 . 2 . 1 Launcher 2 | . . 1 . . . . 1 . . Special Weapon 2 | . 1 1 . . . . . . . Impact Weapon . | . . . . . . . . . . Slashing Weapon . | . . . . . . . . . . Piercing Weapon . | . . . . . . . . . . Special Melee Weapon . | . . . . . . . . . . Unidentified Prototypes 1 | . . . . . 1 . . . . Corrupted Parts 4 | . . . . . . . . . 4 System Corruption 10 | . . . . . . . . . 10 Parts Lost 53 | . . 5 . . . . 10 . 38 Power 11 | . . 1 . . . . 3 . 7 Propulsion 18 | . . 2 . . . . 3 . 13 Utility 4 | . . 1 . . . . . . 3 Weapon 20 | . . 1 . . . . 4 . 15 Highest Loss Streak 38 | . . 2 . . . . 3 . 38 To Critical Strikes 1 | . . . . . . . . . 1 Average Slot Usage (%) 87 | . 100 96 74 85 89 93 91 88 51 Engine 9 | . 14 3 14 14 18 15 4 5 2 Core 3 | . . 9 . . . . 6 5 2 Treads 14 | . . . . . 29 38 23 . . Leg 8 | . 28 18 . . . . 8 29 15 Wheel 6 | . . 8 28 28 7 . . . . Device 6 | . 14 12 . . . 4 10 5 2 Storage 9 | . 14 14 14 14 9 7 6 5 2 Processor 6 | . . . 14 14 9 8 6 5 5 Energy Gun 7 | . 16 27 2 . 1 . 5 5 3 Ballistic Gun 3 | . . . . . 9 2 6 . 1 Ballistic Cannon 4 | . . . . . 4 15 6 11 2 Naked Turns . | . . . . . . . . . . Heaviest Build 120 | 13 13 14 45 67 70 63 93 100 120 Greatest Support 112 | 20 20 20 20 20 102 102 112 80 82 Greatest Overweight (x) 14 | . . 1 2 3 1 . 4 1 14 Average Overweight (x) . | . . . . 3 . . . 1 . Largest Inventory Capacity 20 | 8 8 8 20 20 20 20 20 20 20 Average Capacity 15 | 7 8 8 11 20 20 20 20 20 13 Most Carried 20 | 8 8 8 11 9 20 20 20 18 17 Average Carried 13 | 4 7 7 8 9 17 19 19 15 10 Final Capacity 20 | 8 8 8 20 20 20 20 20 20 5 Final Carried 20 | 8 8 8 11 9 20 20 19 15 3 Class Distribution -------------------- 41% | Mutant 25% | Scavenger-Mutant 20% | Scavenger-Tank 4% | Tank 3% | Skirmisher 3% | Scavenger-Gunner Dominant Class ---------------- Mutant | -10/Materials Mutant | -10/Mines Mutant | -10/Exiles Mutant | -9/Mines Scavenger-Mutant | -8/Materials Scavenger-Mutant | -7/Factory Scavenger-Tank | -6/Factory Scavenger-Mutant | -5/Factory Skirmisher | -5/DSF Resources | -11 -10 -10 -10 -9 -8 -7 -6 -5 -5 ----------- Run | Yrd Mat Min Exi Min Mat Fac Fac Fac DSF Matter Collected 2010 | 280 . 159 . . 260 66 1016 . 229 Remotely . | . . . . . . . . . . Salvage Created 1906 | 96 . 332 . . 384 31 849 . 214 Parts 82 | 7 . 6 . . 17 2 34 . 16 Haulers Intercepted 1 | . . . . . 1 . . . . Recyclers Shooed 4 | . . 1 . . 1 . 2 . . Parts Field Recycled . | . . . . . . . . . . Retrieved Matter . | . . . . . . . . . . Parts Self-Destructed . | . . . . . . . . . . Prevented . | . . . . . . . . . . Kills | -11 -10 -10 -10 -9 -8 -7 -6 -5 -5 ------- Run | Yrd Mat Min Exi Min Mat Fac Fac Fac DSF Combat Hostiles Destroyed 37 | . . 13 . . 6 2 12 . 4 Guns 26 | . . 13 . . . . 10 . 3 Cannons 6 | . . . . . 2 2 2 . . AOE 4 | . . . . . 3 . . . 1 Classes Destroyed 15 | 2 . 3 . . 4 1 4 . 1 Worker 6 | . . 1 . . . . 5 . . Builder 4 | . . . . . . . 4 . . Tunneler 2 | 1 . . . . . . 1 . . Hauler 1 | . . . . . 1 . . . . Recycler 4 | 1 . 1 . . 1 . 1 . . Watcher 1 | . . . . . 1 . . . . Swarmer 5 | . . . . . 5 . . . . Grunt 12 | . . 2 . . 1 . 8 . 1 Brawler 1 | . . . . . . . 1 . . Sentry 2 | . . . . . 1 . 1 . . Specialist 2 | . . . . . . . . . 2 Hunter 3 | . . . . . . 2 . . 1 Programmer 1 | . . . . . . . 1 . . Heavy 1 | . . . . . . . 1 . . Assembled 11 | . . 11 . . . . . . . Best Kill Streak 6 | 1 . 5 . . 6 1 6 . 1 Combat Bots Only 6 | . . 5 . . 6 1 3 . 1 Max Kills in Single Turn 3 | 1 . 2 . . 3 1 1 . 1 Gunslinging . | . . . . . . . . . . Exploded 2 | . . . . . 2 . . . 1 Melee . | . . . . . . . . . . Uniques/NPCs Destroyed . | . . . . . . . . . . Combat | -11 -10 -10 -10 -9 -8 -7 -6 -5 -5 -------- Run | Yrd Mat Min Exi Min Mat Fac Fac Fac DSF Hostile Shots Fired 585 | . . 50 . . 7 36 134 . 358 Missed 158 | . . 13 . . 2 12 32 . 99 Damage Taken 8199 | . . 651 . . 112 375 1985 . 5076 Core 1422 | . . 183 . . . 11 218 . 1010 Absorbed by Shields . | . . . . . . . . . . Ignored by Resistances 64 | . . . . . . . 64 . . Core Remaining (%) 79 | 100 . . . 26 100 98 74 . . Volleys Fired 224 | 7 9 52 . . 19 15 84 . 38 Largest 4 | 2 2 2 . . 2 2 4 . 3 Hottest 278 | 80 140 100 . . 250 88 197 . 278 Shots Fired 428 | 14 18 100 . . 27 30 175 . 64 Gun 325 | 14 9 97 . . 22 . 149 . 34 Cannon 90 | . . . . . 5 30 25 . 30 Launcher 1 | . . . . . . . 1 . . Special 12 | . 9 3 . . . . . . . Kinetic 184 | . . . . . 23 30 100 . 31 Thermal 212 | 14 18 97 . . 4 . 74 . 5 Explosive 1 | . . . . . . . 1 . . Electromagnetic 31 | . . 3 . . . . . . 28 Robot Hit Streak 12 | 2 . 9 . . 9 4 12 . 11 Robot Miss Streak 7 | 3 . 3 . . 2 6 3 . 7 Penetration Max . | . . . . . . . . . . Secondary Targets 1 | . . . . . . . . . 1 Max Gunslinging Chain 1 | . . . . . . . . . 1 Shots Hit Robots 271 | 6 . 59 . . 17 14 133 . 42 Core Hits 142 | 3 . 30 . . 20 4 71 . 14 Critical Kills 1 | . . . . . 1 . . . . Critical Parts Destroyed 1 | . . . . . . . 1 . . Critical Strikes 12 | . . . . . 1 . 9 . 2 Burn 7 | . . . . . . . 7 . . Destroy 2 | . . . . . 1 . 1 . . Blast 2 | . . . . . . . 1 . 1 Corrupt 1 | . . . . . . . . . 1 Melee Attacks . | . . . . . . . . . . Impact . | . . . . . . . . . . Slashing . | . . . . . . . . . . Piercing . | . . . . . . . . . . Sneak Attacks . | . . . . . . . . . . Combat Hostiles . | . . . . . . . . . . Follow-up Attacks . | . . . . . . . . . . Damage Inflicted 5296 | 65 12 661 . . 416 270 2691 . 1181 Guns 3641 | 65 12 661 . . 155 . 2276 . 472 Cannons 1226 | . . . . . 109 270 411 . 436 Explosions 425 | . . . . . 152 . . . 273 Melee . | . . . . . . . . . . Ramming 4 | . . . . . . . 4 . . Kinetic 2536 | . . . . . 155 270 1655 . 456 Thermal 2363 | 65 12 649 . . 261 . 1032 . 344 Explosive . | . . . . . . . . . . Electromagnetic 393 | . . 12 . . . . . . 381 Impact . | . . . . . . . . . . Slashing . | . . . . . . . . . . Piercing . | . . . . . . . . . . Highest Corruption 14 | . . 5 5 5 . . 4 . 14 Average Corruption 4 | . . 3 5 5 . . 2 . 11 Corruption Purged . | . . . . . . . . . . Corruption Blocked . | . . . . . . . . . . Effects 29 | . . 4 10 3 . . 4 . 8 Message Errors 10 | . . 1 3 2 . . 2 . 2 Matter Fused 8 | . . 2 1 1 . . 1 . 3 Heat Flow Errors 1 | . . . 1 . . . . . . Energy Discharges 1 | . . . . . . . 1 . . Parts Rejected 1 | . . . . . . . . . 1 Data Loss (minor) 4 | . . 1 2 . . . . . 1 Alerts 3 | . . . 3 . . . . . . Weapon Failures 1 | . . . . . . . . . 1 Overload Shots . | . . . . . . . . . . Overflow Damage 11 | . . . . . . . . . 11 Projectiles 11 | . . . . . . . . . 11 Explosions . | . . . . . . . . . . Melee . | . . . . . . . . . . Knockbacks 2 | . . . . . . 1 1 . . Impact . | . . . . . . . . . . Kinetic 2 | . . . . . . 1 1 . . Secondary . | . . . . . . . . . . Self-Inflicted Damage 24 | . . . . . 18 . . . 6 Shots 3 | . . . . . 2 . . . 1 Rammed 1 | . . . . . . . 1 . . Targets Rammed 1 | . . . . . . . 1 . . Kicked . | . . . . . . . . . . Crushed . | . . . . . . . . . . Highest Temperature 673 | 90 262 231 221 . 673 165 565 . 301 Average Temperature 143 | 40 113 69 111 . 267 67 195 . 115 Received Heat Transfer 1135 | . . 265 . . 27 . 591 . 252 Effects 43 | . . . . . 6 . 33 . 4 Shutdowns 14 | . . . . . 2 . 12 . . Energy Bleed 2 | . . . . . 1 . 1 . . Interference 10 | . . . . . 1 . 5 . 4 Matter Decay 3 | . . . . . 1 . 2 . . Short Circuit 5 | . . . . . 1 . 4 . . Damage (minor) 3 | . . . . . . . 3 . . Damage (major) 5 | . . . . . . . 5 . . Damage (core) 1 | . . . . . . . 1 . . Siege Activations . | . . . . . . . . . . Robots Corrupted . | . . . . . . . . . . Combat Hostiles . | . . . . . . . . . . Parts Fried 1 | . . . . . . . . . 1 Impact Corruptions . | . . . . . . . . . . Robots Melted 1 | . . . . . 1 . . . . Combat Hostiles 1 | . . . . . 1 . . . . Parts Melted 9 | . . 1 . . 4 . 4 . . Heat Transferred 7136 | 150 25 1475 . . 1637 . 3125 . 724 Parts Sabotaged . | . . . . . . . . . . Parts Stolen . | . . . . . . . . . . Parts Stripped . | . . . . . . . . . . Power Chain Reactions 1 | . . . . . . . . . 1 Alert | -11 -10 -10 -10 -9 -8 -7 -6 -5 -5 ------- Run | Yrd Mat Min Exi Min Mat Fac Fac Fac DSF Peak Influence 390 | 10 15 67 . . 390 83 197 64 53 Initial 64 | . 6 5 . . . 53 40 64 44 Average 86 | 5 9 35 . . 249 63 81 64 23 Maximum Alert Level 1 | . . . . . 1 . . . . Low Security (%) 86 | 100 100 100 . 100 25 100 100 100 100 Level 1 13 | . . . . . 74 . . . . Level 2 . | . . . . . . . . . . Level 3 . | . . . . . . . . . . Level 4 . | . . . . . . . . . . Level 5 . | . . . . . . . . . . High Security . | . . . . . . . . . . Max Security . | . . . . . . . . . . Squads Dispatched 10 | . . . . . . 2 5 . 3 Investigation 1 | . . . . . . 1 . . . Extermination 3 | . . . . . . 1 2 . . Reinforcement 6 | . . . . . . . 3 . 3 Assault . | . . . . . . . . . . Garrison . | . . . . . . . . . . Intercept . | . . . . . . . . . . Searches Triggered . | . . . . . . . . . . Construction Impeded . | . . . . . . . . . . Haulers Reinforced 1 | . . . . . . . 1 . . Active Scanning Responses . | . . . . . . . . . . Cargo Convoy Interrupts . | . . . . . . . . . . Stealth | -11 -10 -10 -10 -9 -8 -7 -6 -5 -5 --------- Run | Yrd Mat Min Exi Min Mat Fac Fac Fac DSF Distress Signals . | . . . . . . . . . . Communications Jammed . | . . . . . . . . . . Distress Signals . | . . . . . . . . . . Times Spotted 68 | . . 16 . . 15 2 18 . 17 Peak Tracking Total 10 | . . 3 . . 10 2 5 . 6 Tactical Retreats 11 | . . 2 . . . . 3 . 6 Traps | -11 -10 -10 -10 -9 -8 -7 -6 -5 -5 ------- Run | Yrd Mat Min Exi Min Mat Fac Fac Fac DSF Traps Triggered 2 | . . . . . . 1 . . 1 Indirectly . | . . . . . . . . . . Trap Hack Attempts . | . . . . . . . . . . Triggered . | . . . . . . . . . . Disarmed . | . . . . . . . . . . Reprogrammed . | . . . . . . . . . . Reused . | . . . . . . . . . . Traps Extracted . | . . . . . . . . . . Installed . | . . . . . . . . . . Triggered . | . . . . . . . . . . Machines | -11 -10 -10 -10 -9 -8 -7 -6 -5 -5 ---------- Run | Yrd Mat Min Exi Min Mat Fac Fac Fac DSF Machines Disabled 1 | . . . . . 1 . . . . Max in Single Turn 1 | . . . . . 1 . . . . Machines Repaired . | . . . . . . . . . . Machines Dismantled . | . . . . . . . . . . Machines Sabotaged . | . . . . . . . . . . Overloaded Fab Kills . | . . . . . . . . . . Hacking | -11 -10 -10 -10 -9 -8 -7 -6 -5 -5 --------- Run | Yrd Mat Min Exi Min Mat Fac Fac Fac DSF Machines Accessed 8 | . 1 . 2 . 3 . 1 1 . Terminals 4 | . 1 . . . 2 . . 1 . Fabricators . | . . . . . . . . . . Repair Stations 1 | . . . . . . . 1 . . Recycling Units . | . . . . . . . . . . Scanalyzers 1 | . . . . . 1 . . . . Garrison Access . | . . . . . . . . . . Total Hacks 37 | . 1 . 24 . 10 . 1 1 . Successful 31 | . . . 24 . 6 . . 1 . Failed 6 | . 1 . . . 4 . 1 . . Catastrophic . | . . . . . . . . . . Database Lockouts . | . . . . . . . . . . Manual 3 | . . . 1 . 2 . . . . Terminals 7 | . 1 . . . 5 . . 1 . Fabricators . | . . . . . . . . . . Repair Stations 1 | . . . . . . . 1 . . Recycling Units . | . . . . . . . . . . Scanalyzers 5 | . . . . . 5 . . . . Garrison Access . | . . . . . . . . . . Terminal Hacks 28 | . . . 24 . 3 . . 1 . Record 23 | . . . 23 . . . . . . Prototype ID Bank 1 | . . . . . 1 . . . . Open DSF 1 | . . . . . . . . 1 . Alert Level 1 | . . . . . 1 . . . . Unreport Threat 1 | . . . . . 1 . . . . Derelict Proto ID Bank 1 | . . . 1 . . . . . . Fabricator Hacks . | . . . . . . . . . . Repair Station Hacks . | . . . . . . . . . . Recycling Unit Hacks . | . . . . . . . . . . Scanalyzer 3 | . . . . . 3 . . . . Insert Component 2 | . . . . . 2 . . . . Analyze 1 | . . . . . 1 . . . . Garrison Access Hacks . | . . . . . . . . . . Unauthorized Hacks . | . . . . . . . . . . Terminals . | . . . . . . . . . . Fabricators . | . . . . . . . . . . Repair Stations . | . . . . . . . . . . Recycling Units . | . . . . . . . . . . Scanalyzers . | . . . . . . . . . . Garrison Access . | . . . . . . . . . . Data Cores Recovered . | . . . . . . . . . . Used . | . . . . . . . . . . Hacking Detections 5 | . 1 . . . 2 . 1 1 . Full Trace Events . | . . . . . . . . . . Feedback Events . | . . . . . . . . . . Feedback Blocked . | . . . . . . . . . . Robot Schematics Acquired . | . . . . . . . . . . Robots Built . | . . . . . . . . . . Authchips . | . . . . . . . . . . Time . | . . . . . . . . . . Total Robot Build Rating . | . . . . . . . . . . Part Schematics Acquired 1 | . . . . . 1 . . . . Parts Built . | . . . . . . . . . . Authchips . | . . . . . . . . . . Time . | . . . . . . . . . . Total Part Build Rating . | . . . . . . . . . . Parts Repaired . | . . . . . . . . . . Time . | . . . . . . . . . . Parts Recycled . | . . . . . . . . . . Recycled Matter . | . . . . . . . . . . Retrieved Matter . | . . . . . . . . . . Retrieved Components . | . . . . . . . . . . Parts Scanalyzed 1 | . . . . . 1 . . . . Part Schematics Acquired 1 | . . . . . 1 . . . . Parts Damaged . | . . . . . . . . . . Bothacking | -11 -10 -10 -10 -9 -8 -7 -6 -5 -5 ------------ Run | Yrd Mat Min Exi Min Mat Fac Fac Fac DSF Used RIF Installer . | . . . . . . . . . . Robots Hacked . | . . . . . . . . . . Non-combat . | . . . . . . . . . . Combat . | . . . . . . . . . . Robot Hacks Applied . | . . . . . . . . . . Relay Couplers Released . | . . . . . . . . . . Fabnet Peak Effective % . | . . . . . . . . . . Robots Rewired . | . . . . . . . . . . Allies Hacked . | . . . . . . . . . . Hacks Repelled . | . . . . . . . . . . Allies | -11 -10 -10 -10 -9 -8 -7 -6 -5 -5 -------- Run | Yrd Mat Min Exi Min Mat Fac Fac Fac DSF Total Allies 3 | . . . . 3 . . . . . Largest Group 3 | . . . . 3 3 1 . . . Highest-Rated Group 40 | . . . . 40 40 16 . . . Highest-Rated Ally 16 | . . . . 16 16 16 . . . Total Orders 1 | . . . . . 1 . . . . AID 1 | . . . . . 1 . . . . Ally Attacks 37 | . . . . . 34 3 . . . Total Damage 348 | . . . . . 322 26 . . . Kills 8 | . . . . . 8 . . . . Allies Corrupted . | . . . . . . . . . . Allies Melted . | . . . . . . . . . . Intel | -11 -10 -10 -10 -9 -8 -7 -6 -5 -5 ------- Run | Yrd Mat Min Exi Min Mat Fac Fac Fac DSF Robot Analysis Total . | . . . . . . . . . . Derelict Logs Recovered 1 | . . 1 . . . . . . . Drone Launches . | . . . . . . . . . . Drone Recoveries . | . . . . . . . . . . Exploration | -11 -10 -10 -10 -9 -8 -7 -6 -5 -5 ------------- Run | Yrd Mat Min Exi Min Mat Fac Fac Fac DSF Turns Passed 3863 | 170 183 634 407 88 627 308 1083 48 315 Spaces Moved 2161 | 109 111 319 444 59 373 162 465 24 95 Core 9 | 4 . . . . . . . . 5 Treads 752 | . . . . . 265 162 325 . . Legs 630 | 105 111 160 . . . . 140 24 90 Wheels 770 | . . 159 444 59 108 . . . . Hover . | . . . . . . . . . . Flight . | . . . . . . . . . . Fastest Speed 50 | 50 120 80 80 125 95 157 120 190 100 Average Speed 127 | 117 120 102 88 125 138 157 154 190 171 Slowest Speed 750 | 120 120 190 110 125 232 157 400 190 750 Overloaded Moves . | . . . . . . . . . . Propulsion Burnouts . | . . . . . . . . . . Robots Hopped . | . . . . . . . . . . Cave-ins Triggered . | . . . . . . . . . . Exploration Rate (%) 25 | 8 23 64 67 15 25 4 9 1 36 Regions Visited 9 Branch Regions 3 Pre-discovered Areas 1 | . . . 1 . . . . . . Known Exits Taken 1 | . . . . . . . . 1 . Unknown Exits Taken 8 | 1 1 1 1 1 1 1 1 . . Scrap Searched 1 | . . 1 . . . . . . . Spaces Dug 12 | . 9 3 . . . . . . . Terrain Destroyed 37 | . 9 3 . . 13 . 9 . 3 Melee . | . . . . . . . . . . Projectile 16 | . 9 3 . . 2 . 1 . 1 AOE 21 | . . . . . 11 . 8 . 2 Terrain Rammed . | . . . . . . . . . . Walls Destroyed . | . . . . . . . . . . Machines Disabled . | . . . . . . . . . . Actions | -11 -10 -10 -10 -9 -8 -7 -6 -5 -5 --------- Run | Yrd Mat Min Exi Min Mat Fac Fac Fac DSF Total 2859 | 135 127 523 463 73 460 186 686 27 179 Wait 258 | . 3 121 1 14 22 2 88 . 7 Move 2152 | 108 110 318 443 58 372 161 464 23 95 Hop . | . . . . . . . . . . Pick Up 40 | 9 2 7 5 . 9 2 6 . . Fast Attach 64 | 8 . 5 1 . 11 3 11 . 25 Attach 28 | . 1 4 . 1 4 . 8 4 6 Detach 16 | 1 . 1 1 . 7 . 4 . 2 Swap 21 | . . 6 2 . 6 . 7 . . Drop 48 | 2 2 9 8 . 10 3 13 . 1 Fire 224 | 7 9 52 . . 19 15 84 . 38 Melee . | . . . . . . . . . . Ram . | . . . . . . . . . . Kick . | . . . . . . . . . . Crush 1 | . . . . . . . 1 . . Escape Stasis 5 | . . . . . . . . . 5 Rewire 2 | . . . 2 . . . . . . Trap . | . . . . . . . . . . Miscellaneous . | . . . . . . . . . . Route ------- -11/Scrapyard -10/Materials -10/Mines -10/Exiles -9/Mines -8/Materials (discovered 2 exits: [*Fac] / Sto) -7/Factory -6/Factory -5/Factory -5/DSF History --------- Turn | Location | Event 11 | -11/Scrapyard | Discovered new exit (range 15) 171 | -11/Scrapyard | Entered Materials 311 | -10/Materials | Build established: Mutant 341 | -10/Materials | Discovered new exit (range 7) 354 | -10/Materials | Entered Mines 502 | -10/Mines | Assembled infested the area 779 | -10/Mines | Core integrity fell below 50% 984 | -10/Mines | Deemed a non-threat by the Exiles lab entrance 985 | -10/Mines | Discovered new exit (range 5) 988 | -10/Mines | Entered Exiles 1014 | -10/Exiles | Met 8R-AWN 1031 | -10/Exiles | Met EX-HEX 1064 | -10/Exiles | Met EX-BIN 1080 | -10/Exiles | Aligned with FarCom system 1081 | -10/Exiles | Given EX-Vault access code 1107 | -10/Exiles | Opened EX-Vault 1120 | -10/Exiles | Found Firepult 1145 | -10/Exiles | Warned to stay clear of 0b10 Research branches 1289 | -10/Exiles | Met EX-DEC 1299 | -10/Exiles | Learned location of Zion (-7) 1383 | -10/Exiles | Discovered new exit (range 12) 1395 | -10/Exiles | Left Exiles lab with Firepult 1395 | -10/Exiles | Entered Mines 1398 | -9/Mines | Met a Derelict bent on vengeance 1400 | -9/Mines | Assisted by bots powering up and referring to "LRC-V3" 1466 | -9/Mines | Discovered new exit (range 7) 1483 | -9/Mines | Entered Materials 1483 | -8/Materials | Accompanied by 3 allies 1483 | -8/Materials | Evolved 4 slots: Power x1, Propulsion x3 1484 | -8/Materials | Identified exit to Storage 1862 | -8/Materials | Build established: Scavenger-Mutant 2052 | -8/Materials | Discovered new exit (range 15) 2110 | -8/Materials | Entered Factory 2110 | -7/Factory | Accompanied by 1 ally 2110 | -7/Factory | Evolved 2 slots: Utility x1, Weapon x1 2370 | -7/Factory | Discovered new exit (range 5) 2418 | -7/Factory | Entered another Factory area 2418 | -6/Factory | Evolved 2 slots: Utility x1, Weapon x1 2791 | -6/Factory | Build established: Scavenger-Tank 3270 | -6/Factory | Lost 3 parts (2p1w) 3415 | -6/Factory | Discovered new exit (range 5) 3466 | -6/Factory | Lost 3 parts (1n2w) 3501 | -6/Factory | Entered another Factory area 3501 | -5/Factory | Evolved 2 slots: Utility x2 3549 | -5/Factory | Identified exit to DSF 3549 | -5/Factory | Entered DSF 3604 | -5/DSF | Additional patrols routed to DSF 3725 | -5/DSF | Core integrity fell below 50% 3762 | -5/DSF | System corruption reached 10% 3818 | -5/DSF | Core integrity fell below 20% 3864 | -5/DSF | Destroyed by S-27 Virus with Autogun Last Messages --------------- 03811_ Flexi-carbon Leg destroyed. 03812_ Slug penetrates X-72 Disruptor. 03814_ Gauss Rifle destroyed. 03820_ System corrupted: Matter fused (-7). 03820_ Slug penetrates X-72 Disruptor. 03827_ Acquired 86 matter. 03833_ Acquired Lgt. Fission Core. 03837_ T,O9VPNRBJKOZS#FB6ECXDGUB1D 03841_ Firepult destroyed. 03842_ Acquired Arm. Leg. 03843_ Gauss Rifle destroyed. 03846_ Acquired Carbon-fiber Leg. 03847_ Acquired 56 matter. 03848_ Lgt. Fission Core destroyed. 03850_ Acquired Hvy. Phase Cannon. 03850_ Arm. Leg destroyed. 03859_ System corrupted: Matter fused (-6). 03862_ Destroyed VTOL Module. 03862_ Carbon-fiber Leg destroyed. 03863_ Flexi-carbon Leg destroyed. Map ----- +----------------------------------------------------+ | ????????????????????????????????????? | | ????????????????????????????????????? | | ????????????????????????????????????? | | ????????????????????????????????????? | | ????????????????????????????????????? | | ????????????????????????????????????? | | ????????????????????????????????????? | | ????????????????????????????????????? | | ????????????????????????????????????? | | ????????????????????????????????????? | | ????????????????????????????????????? | | ????????????????????????????????????? | | ????????????????????????????????????? | | ????????????????????????????????????? | | ????????????????????????????????????? | | ????????????###?????????????????????? | | ??????#######"###?###???????????????? | | ??????# #" %=#!!!#???????????????? | | ????### ""==="!!!## ?????????? | | ????# "!! % ????????? | | ????# "!! % H ??????? | | ????##"!! ]s s =%[ % ???????? | | ?????## %""#[[[#]]]"" % ##???????? | | ??????#% %%##[[[#]]]### ##????????? | | ??????### ##########??? #?????????? | | ???????#] @#??????????? ==????????? | | ???????#][ #?????????????=????????? | | ???????# !% #??????????????????????? | | ???????#;* %##?????????x????????????? | | ???????#! !%#?????????x????????????? | | ???????#| ! #??????????????????????? | | ???????##!==%########???????????????? | | ??????###ss;## ]# [[#???????????????? | | ????###"" ##[!# [[### ###???????? | | ????""""" ! !^ ???? | | ????"##"" ![ ^^ ???? | | ??????#""%"%## #]]]# /// #!!!#???? | | ??????#""%""######### /// #???????? | | ??????####"##?????????#######???????? | | ?????????#"#????????????????????????? | | ?????????""#????????????????????????? | | ?????????##?????????????????????????? | | ????????????????????????????????????? | | ????????????????????????????????????? | | ????????????????????????????????????? | | ????????????????????????????????????? | | | | | | | | | +----------------------------------------------------+ Best States ------------- Heat Dissipation 40 Energy Generation 38 Energy Capacity 310 Matter Stores 300 Matter Capacity 300 Sight Range 16 Terrain Scan Range 16 Terrain Scan Density 10 Armor Coverage 825 Resistance: KI 20 Resistance: EM 25 Evasion (%) 55 Targeting Accuracy 11 Recoil Reduction 5 Item Schematics ----------------- Airjet | -8/Materials | Scanalyzed Robot Schematics ------------------ None Fabricated ------------ Nothing Alien Tech Used ----------------- None Achievements -------------- None Challenges ------------ None Game ------ Seed CryofiberActuatorTreads Manual? 0 Play Time 00:39:00 Cumulative 38.2 hours Start 2024.04.02 @ 14:17:22 End 2024.04.02 @ 17:31:49 Sessions 1 Manual Loads 0 Difficulty Rogue Special Mode None Game No. 86 Rogue 86 Adventurer 0 Explorer 0 Win Type - Total 0 Types 0/0/0/0/0/0/0/0/0 Lore% 20 Gallery% 31 Achievement% 25 Wizard Run 0 Options --------- Layout 0 ASCII 0 Keyboard 1 Movement Numpad Keybinds 0 Fullscreen 1 Font 18/X11 Map View 76x50 Zoom Use 0% Tactical HUD 1 Map Filters NONE Filters NONE Steam 1 RUN: a24f5a0e-5fb1-4856-9500-fb9bdc01f1cb